bitfinex-derivatives/quotes_SOLF0:USTF0_20250923
["timestamp","ask_amount","ask_price","bid_price","bid_amount"]
[1758636488735,7.61,219.22,219.13,2.42405967]
[1758636488946,14.0,219.22,219.13,2.42405967]
[1758636489238,4.1028,219.21,219.13,2.42405967]
[1758636489438,14.0,219.22,219.13,2.42405967]
[1758636489834,16.42405967,219.22,219.13,6.52805967]
[1758636490036,16.42405967,219.22,219.13,2.42405967]
[1758636490232,14.0,219.22,219.17,4.1032]
[1758636490439,6.39,219.22,219.17,7.0332]
[1758636490840,6.39,219.22,219.19,4.1029]
[1758636491242,6.39,219.22,219.16,2.42405967]
[1758636492037,6.39,219.22,219.21,2.93]
[1758636492239,7.33,219.3,219.21,2.93]
[1758636492439,7.33,219.3,219.22,2.42405967]
[1758636493739,13.85475967,219.32,219.25,4.1019]
[1758636494141,9.75405967,219.32,219.25,4.1019]
[1758636494439,7.33,219.32,219.26,4.1016]
[1758636494639,7.33,219.32,219.25,2.42405967]
[1758636494845,7.33,219.36,219.29,2.42405967]
[1758636495947,7.33,219.36,219.32,4.1005]
[1758636496240,64.45316556,219.47,219.34,2.42405967]
[1758636496241,7.33,219.41,219.34,2.42405967]
[1758636498043,344.84,219.53,219.4,2.42405967]
[1758636498244,7.33,219.52,219.4,5.35405967]
[1758636498541,7.33,219.52,219.42,63.7587]
[1758636498746,127.526,219.57,219.41,2.93]
[1758636498941,127.526,219.57,219.44,4.0982]
[1758636499141,123.43,219.57,219.43,63.755]
[1758636499347,123.43,219.57,219.44,63.7526]
[1758636499644,123.43,219.57,219.46,4.0979]
[1758636499946,7.33,219.55,219.38,2.93]
[1758636500445,7.33,219.52,219.38,2.93]
[1758636500646,71.0609,219.52,219.38,2.93]
[1758636500844,4.0975,219.49,219.34,10.29721083]
[1758636501145,7.33,219.42,219.28,3.80270034]
[1758636501450,7.33,219.42,219.26,2.93]
[1758636501645,7.33,219.42,219.26,6.73270034]
[1758636501946,7.33,219.42,219.26,2.93]
[1758636502643,7.33,219.42,219.3,66.7234]
[1758636503540,7.33,219.42,219.31,63.7908]
[1758636503741,4.0983,219.45,219.31,63.7908]
[1758636503948,4.0983,219.45,219.31,116.68]
[1758636504447,4.0983,219.45,219.32,4.1006]
[1758636505553,11.2586,219.43,219.31,116.68]
[1758636505748,7.16,219.43,219.31,116.68]
[1758636506154,7.16,219.43,219.31,180.4695]
[1758636506457,7.16,219.43,219.32,2.92]
[1758636507357,7.16,219.5,219.33,63.7849]
[1758636507547,11.2574,219.5,219.36,4.0998]
[1758636507746,7.16,219.5,219.32,2.92]
[1758636507951,7.16,219.48,219.32,2.92]
[1758636508751,4.098,219.46,219.33,4.1003]
[1758636508946,7.16,219.48,219.33,4.1003]
[1758636509154,4.0988,219.42,219.29,4.1011]
[1758636509352,7.16,219.41,219.29,77.1011]
[1758636509553,7.16,219.41,219.29,4.1011]
[1758636509745,4.0996,219.38,219.27,2.92]
[1758636510153,7.16,219.41,219.27,2.92]
[1758636511553,7.16,219.41,219.28,63.799]
[1758636511755,7.16,219.41,219.29,2.92]
[1758636512154,7.16,219.41,219.32,4.1006]
[1758636513260,7.16,219.41,219.34,4.1002]
[1758636513456,11.2576,219.49,219.33,66.7045]
[1758636513657,7.16,219.49,219.33,66.7045]
[1758636514062,4.0978,219.47,219.38,4.0994]
[1758636514363,7.16,219.49,219.38,66.6899]
[1758636514766,7.16,219.49,219.38,2.92]
[1758636515857,4.0976,219.48,219.38,2.92]
[1758636516054,7.16,219.49,219.38,2.92]
[1758636516965,4.0978,219.48,219.35,115.02]
[1758636517765,7.16,219.49,219.39,4.0991]
[1758636518057,7.16,219.49,219.35,2.92]
[1758636518666,7.16,219.49,219.39,63.7673]
[1758636518866,7.16,219.49,219.4,2.92]
[1758636519262,11.2567,219.54,219.44,4.0982]
[1758636520365,7.16,219.54,219.45,4.098]
[1758636520766,4.0967,219.53,219.42,2.92]
[1758636521368,7.16,219.54,219.42,2.92]
[1758636521570,7.16,219.54,219.44,63.751]
[1758636521764,7.16,219.54,219.48,4.0974]
[1758636522068,7.16,219.54,219.43,63.7554]
[1758636522868,7.16,219.54,219.46,4.098]
[1758636524272,7.16,219.54,219.47,4.0976]
[1758636524970,4.0956,219.59,219.46,66.6665]
[1758636525172,11.2556,219.59,219.47,63.7438]
[1758636525960,7.16,219.59,219.48,63.7402]
[1758636526271,7.16,219.66,219.5,2.92]
[1758636526961,7.16,219.62,219.5,2.92]
[1758636527165,7.16,219.62,219.52,63.7296]
[1758636527365,7.16,219.62,219.53,2.92]
[1758636528264,11.2543,219.66,219.58,4.0956]
[1758636528772,7.16,219.66,219.58,4.0956]
[1758636528975,7.16,219.66,219.59,4.0954]
[1758636529169,7.16,219.66,219.56,2.92]
[1758636530267,7.16,219.66,219.51,9.11711083]
[1758636530464,7.16,219.66,219.51,2.92]
[1758636530662,4.0946,219.64,219.55,4.0961]
[1758636532976,4.0946,219.64,219.56,4.096]
[1758636533678,11.555,219.63,219.53,115.68]
[1758636533983,11.555,219.63,219.51,118.58]
[1758636534176,11.555,219.63,219.54,4.0963]
[1758636534674,4.0952,219.61,219.52,4.0968]
[1758636535371,4.0956,219.59,219.52,4.0968]
[1758636535576,7.46,219.6,219.49,4.0973]
[1758636535771,7.46,219.59,219.45,460.08]
[1758636535967,4.0963,219.55,219.45,460.08]
[1758636536173,7.46,219.58,219.49,4.0972]
[1758636536666,7.46,219.58,219.48,63.741]
[1758636536874,7.46,219.66,219.53,4.0967]
[1758636537074,4.0953,219.61,219.53,4.0967]
[1758636537274,7.46,219.61,219.48,4.0976]
[1758636537469,7.46,219.61,219.47,2.91]
[1758636537674,7.46,219.61,219.45,460.08]
[1758636537675,4.0944,219.66,219.51,66.6419]
[1758636537877,63.6836,219.68,219.54,4.0964]
[1758636538175,63.6836,219.68,219.52,179.6689]
[1758636538372,11.5548,219.64,219.56,4.096]
[1758636538572,7.46,219.64,219.54,2.91]
[1758636538873,7.46,219.64,219.55,63.7205]
[1758636539279,7.46,219.64,219.57,4.0959]
[1758636539479,7.46,219.64,219.54,2.91]
[1758636539680,7.46,219.71,219.56,63.7178]
[1758636539883,4.0937,219.69,219.57,2.91]
[1758636540272,7.46,219.71,219.61,4.095]
[1758636540772,4.0937,219.7,219.6,4.0953]
[1758636541476,4.0938,219.69,219.6,4.0953]
[1758636541676,4.0938,219.69,219.61,4.095]
[1758636542674,4.094,219.68,219.59,4.0955]
[1758636542880,4.094,219.68,219.57,2.91]
[1758636543078,7.46,219.71,219.57,2.91]
[1758636543876,4.0943,219.66,219.6,4.0952]
[1758636544073,7.46,219.67,219.56,2.91]
[1758636544488,11.5542,219.67,219.59,4.0954]
[1758636544676,11.5542,219.67,219.56,2.91]
[1758636544677,7.46,219.67,219.56,2.91]
[1758636545286,7.46,219.67,219.58,4.0956]
[1758636545583,7.46,219.67,219.56,2.91]
[1758636545779,7.46,219.67,219.53,63.7256]
[1758636545780,7.46,219.67,219.51,2.91]
[1758636545988,7.46,219.67,219.53,63.7251]
[1758636546188,7.46,219.67,219.56,63.7177]
[1758636546379,7.46,219.67,219.57,2.91]
[1758636546578,7.46,219.67,219.58,3.77128179]
[1758636547177,344.48,219.73,219.63,4.0947]
[1758636547178,7.46,219.72,219.63,4.0947]
[1758636547375,7.46,219.72,219.62,3.77128179]
[1758636547778,11.5533,219.72,219.62,3.77128179]
[1758636548379,4.0935,219.71,219.62,3.77128179]
[1758636548881,4.0937,219.69,219.61,2.91]
[1758636549086,7.46,219.72,219.61,2.91]
[1758636549591,7.46,219.72,219.63,4.0947]
[1758636549884,8.18474987,219.77,219.63,66.6075]
[1758636550184,8.18474987,219.77,219.66,4.0941]
[1758636550185,4.0925,219.76,219.66,4.0941]
[1758636550379,4.0925,219.76,219.64,2.91]
[1758636550787,7.46,219.77,219.67,2.91]
[1758636551385,11.5523,219.77,219.68,4.0939]
[1758636552292,7.42,219.83,219.67,47.53]
[1758636552484,7.42,219.83,219.74,3.77128179]
[1758636552690,7.42,219.83,219.76,4.0924]
[1758636552894,7.42,219.89,219.76,4.0924]
[1758636553394,7.42,219.9,219.75,2.9]
[1758636553888,4.0904,219.87,219.77,4.0922]
[1758636555188,4.0907,219.85,219.75,2.9]
[1758636556081,7.42,219.84,219.75,2.9]
[1758636556581,101.5112,219.93,219.77,4.0922]
[1758636556582,7.42,219.88,219.77,4.0922]
[1758636557388,7.42,219.88,219.79,4.0918]
[1758636557585,7.42,219.88,219.79,6.9918]
[1758636557789,7.42,219.88,219.79,2.9]
[1758636557986,4.0904,219.87,219.79,2.9]
[1758636558591,7.42,219.88,219.79,2.9]
[1758636559498,4.0894,219.92,219.83,4.0911]
[1758636560292,7.42,219.93,219.83,6.9911]
[1758636560693,7.42,219.93,219.83,2.9]
[1758636561298,7.42,219.93,219.84,4.0909]
[1758636561697,7.42,219.93,219.83,2.9]
[1758636561897,7.42,219.93,219.83,6.991]
[1758636562792,7.42,219.93,219.85,4.0906]
[1758636564197,11.5092,219.93,219.83,2.9]
[1758636564796,11.5092,219.93,219.84,4.0909]
[1758636567199,11.5092,219.93,219.83,2.9]
[1758636567200,7.42,219.93,219.85,4.0905]
[1758636567396,7.16,219.98,219.85,2.9]
[1758636567802,11.2485,219.98,219.88,4.09]
[1758636568499,11.2485,219.98,219.85,2.9]
[1758636569101,4.0886,219.97,219.87,4.0903]
[1758636569695,4.0889,219.95,219.85,6.9907]
[1758636569896,7.16,219.94,219.85,2.9]
[1758636570294,7.16,219.94,219.85,6.9905]
[1758636570794,11.2492,219.94,219.85,6.9905]
[1758636571197,7.16,219.94,219.85,6.9905]
[1758636571399,4.0892,219.93,219.85,2.9]
[1758636572105,4.0896,219.92,219.83,4.0909]
[1758636573097,11.2491,219.94,219.83,4.0909]
[1758636573306,7.16,219.94,219.84,4.0907]
[1758636574805,7.16,219.94,219.83,2.9]
[1758636575006,11.2491,219.94,219.83,2.9]
[1758636575203,7.16,219.94,219.86,4.0904]
[1758636576611,7.16,220.01,219.87,2.9]
[1758636576998,4.0879,220.0,219.9,4.0896]
[1758636577201,7.16,219.99,219.9,4.0896]
[1758636577399,7.16,219.99,219.87,2.9]
[1758636577601,7.16,219.99,219.88,2.9]
[1758636577809,7.16,219.99,219.92,4.0893]
[1758636578015,7.16,219.99,219.91,2.9]
[1758636578603,7.16,220.07,219.95,4.0887]
[1758636578800,7.16,220.07,219.94,2.9]
[1758636579003,4.0872,220.05,219.97,4.0884]
[1758636580206,7.16,220.02,219.94,2.9]
[1758636581812,7.16,220.02,219.94,6.9889]
[1758636582302,7.16,220.02,219.94,2.9]
[1758636582706,11.2476,220.02,219.94,2.9]
[1758636582913,7.16,220.02,219.92,115.42]
[1758636583312,4.0881,220.0,219.92,4.0893]
[1758636583818,7.16,220.02,219.92,4.0893]
[1758636584011,7.16,220.02,219.9,2.9]
[1758636584720,4.0881,220.0,219.92,4.0893]
[1758636584915,4.0881,220.0,219.9,2.9]
[1758636585114,7.16,219.99,219.9,2.9]
[1758636586212,4.0888,219.96,219.89,4.0898]
[1758636586415,7.16,219.99,219.85,118.3]
[1758636586416,7.16,219.95,219.85,118.3]
[1758636587011,7.16,219.95,219.86,4.0904]
[1758636587418,7.16,219.95,219.85,118.3]
[1758636587719,7.16,219.95,219.89,4.0898]
[1758636587915,7.16,219.95,219.85,118.3]
[1758636588117,11.2489,219.95,219.87,4.0903]
[1758636588517,7.16,219.95,219.87,4.0903]
[1758636588713,63.5803,220.04,219.86,2.9]
[1758636588917,7.16,220.01,219.91,2.9]
[1758636589322,7.16,220.01,219.94,4.089]
[1758636589821,7.16,220.01,219.95,4.0887]
[1758636590316,7.16,220.01,219.96,4.0885]
[1758636590619,7.16,220.06,219.96,4.0885]
[1758636590921,7.16,220.06,219.94,2.9]
[1758636591117,4.087,220.05,219.95,4.0887]
[1758636592222,4.087,220.05,219.96,4.0885]
[1758636593227,7.16,220.06,219.95,63.6049]
[1758636594618,7.16,220.06,219.96,2.9]
[1758636594818,7.16,220.06,219.98,4.0881]
[1758636595524,343.9,220.12,220.01,4.0877]
[1758636595525,7.05,220.1,220.01,4.0877]
[1758636595823,4.0868,220.06,219.96,4.0886]
[1758636596030,7.05,220.05,219.95,57.16]
[1758636596822,7.05,220.1,219.96,2.9]
[1758636597514,7.05,220.1,219.97,63.5988]
[1758636597721,7.05,220.1,219.98,2.9]
[1758636598527,11.1362,220.1,219.98,2.9]
[1758636598729,7.05,220.1,219.98,2.9]
[1758636599426,4.0864,220.09,220.0,4.0878]
[1758636600126,7.05,220.1,220.02,4.0875]
[1758636600329,7.05,220.15,220.02,2.9]
[1758636600830,7.05,220.15,220.06,4.0867]
[1758636601223,7.05,220.15,220.02,2.9]
[1758636601628,5.05948916,220.17,220.02,116.86]
[1758636601828,7.05,220.16,220.02,116.86]
[1758636602129,11.1356,220.13,220.04,4.087]
[1758636602832,11.1356,220.13,220.02,116.86]
[1758636602833,7.05,220.13,220.02,2.9]
[1758636603824,7.05,220.14,220.02,4.0874]
[1758636604027,7.05,220.12,219.98,118.2]
[1758636604333,63.5534,220.13,219.98,118.2]
[1758636604534,7.05,220.12,219.98,118.2]
[1758636604731,63.5534,220.13,219.98,118.2]
[1758636604928,11.1359,220.12,219.98,118.2]
[1758636605139,11.1359,220.12,219.99,2.9]
[1758636605629,7.05,220.12,219.99,2.9]
[1758636606238,7.05,220.11,219.99,2.9]
[1758636606529,7.05,220.11,219.95,70.3]
[1758636606733,7.05,220.1,220.01,2.9]
[1758636607232,7.05,220.1,219.95,63.6045]
[1758636607433,7.05,220.1,220.0,2.9]
[1758636608029,4.0857,220.13,220.05,4.0868]
[1758636608232,4.0857,220.13,220.04,2.9]
[1758636608436,7.05,220.14,220.06,4.0866]
[1758636608830,7.05,220.14,220.04,2.9]
[1758636609031,4.0857,220.13,220.04,2.9]
[1758636609332,7.05,220.14,220.04,2.9]
[1758636609835,25.27752298,220.47,220.03,63.5798]
[1758636609836,7.05,220.19,220.1,2.9]
[1758636610329,11.1346,220.19,220.1,2.9]
[1758636610740,7.05,220.19,220.1,2.9]
[1758636612137,7.05,220.19,220.11,4.0859]
[1758636612542,7.05,220.19,220.11,6.48867328]
[1758636612737,4.0846,220.18,220.11,2.40277328]
[1758636613639,4.0846,220.18,220.1,2.9]
[1758636613832,4.0846,220.18,220.1,5.30277328]
[1758636614137,7.05,220.19,220.1,2.9]
[1758636614446,7.39,220.16,220.06,2.89]
[1758636614738,7.39,220.13,220.05,2.40277328]
[1758636615541,7.39,220.13,220.01,2.40277328]
[1758636615844,7.39,220.1,220.0,5.29277328]
[1758636616032,4.0868,220.07,220.0,2.89]
[1758636616230,11.4768,220.07,219.99,2.40277328]
[1758636616441,11.4768,220.07,219.97,2.40277328]
[1758636616442,7.39,220.07,219.97,2.40277328]
[1758636616741,4.0873,220.04,219.97,2.40277328]
[1758636617336,11.4775,220.03,219.91,343.62]
[1758636617536,7.39,220.03,219.94,2.40277328]
[1758636617936,4.0877,220.02,219.94,2.40277328]
[1758636618153,7.39,220.03,219.94,2.40277328]
[1758636618442,9.79277328,220.05,219.95,2.89]
[1758636618645,9.79277328,220.05,219.93,2.40277328]
[1758636618943,9.79277328,220.05,219.94,2.89]
[1758636619246,9.79277328,220.05,219.96,2.40277328]
[1758636619247,7.39,220.05,219.96,2.40277328]
[1758636619743,7.39,220.05,219.97,4.0885]
[1758636620344,7.39,220.05,219.96,2.40277328]
[1758636621043,7.39,220.05,219.97,2.40277328]
[1758636621641,11.4763,220.09,219.99,4.0881]
[1758636621836,11.4763,220.09,220.0,2.40277328]
[1758636622039,7.39,220.09,220.0,2.40277328]
[1758636622345,7.39,220.09,220.01,4.0877]
[1758636622545,7.39,220.09,220.0,2.40277328]
[1758636622546,7.39,220.09,220.03,2.40277328]
[1758636622735,7.39,220.14,220.03,2.40277328]
[1758636623540,4.0855,220.13,220.06,4.0868]
[1758636623742,7.39,220.14,220.06,6.48957328]
[1758636624140,7.39,220.14,220.06,2.40277328]
[1758636624451,13.8,220.18,220.09,2.40277328]
[1758636624648,13.8,220.18,220.12,2.40277328]
[1758636625340,6.3,220.18,220.15,2.40277328]
[1758636625539,6.3,220.18,220.16,2.89]
[1758636626047,6.3,220.18,220.06,2.89]
[1758636626048,8.70277328,220.18,220.06,2.89]
[1758636626242,7.5,220.17,220.06,2.89]
[1758636626443,7.5,220.13,219.99,2.89]
[1758636626839,4.0861,220.1,219.99,2.89]
[1758636627044,7.5,220.11,219.96,2.89]
[1758636627241,63.5622,220.1,219.96,2.89]
[1758636627443,4.0867,220.07,219.96,2.89]
[1758636628145,7.5,220.09,219.96,6.9786]
[1758636628458,7.5,220.09,219.98,9.05662239]
[1758636628746,7.5,220.09,220.0,4.0879]
[1758636629150,7.5,220.14,219.99,63.5934]
[1758636629339,7.5,220.14,220.0,2.89]
[1758636629545,7.5,220.14,220.04,4.0871]
[1758636629847,7.5,220.14,220.04,2.89]
[1758636630047,4.0856,220.13,220.04,2.89]
[1758636630249,7.5,220.14,220.04,2.89]
[1758636630450,11.5854,220.14,220.04,2.89]
[1758636630847,7.5,220.14,220.04,2.89]
[1758636631049,7.5,220.14,220.04,6.9771]
[1758636631552,7.5,220.14,220.04,2.89]
[1758636632849,7.5,220.14,219.99,2.89]
[1758636633050,7.5,220.14,220.01,2.89]
[1758636633749,7.5,220.14,220.04,4.0871]
[1758636634545,7.5,220.14,220.06,4.0868]
[1758636634744,7.5,220.14,220.04,2.89]
[1758636635143,7.5,220.14,220.08,4.0864]
[1758636635349,7.5,220.14,220.04,2.89]
[1758636635848,7.5,220.14,220.06,4.0866]
[1758636636154,6.3,220.18,220.07,2.89]
[1758636636655,6.3,220.18,220.11,4.0857]
[1758636637153,6.3,220.18,220.11,66.4481]
[1758636637356,6.3,220.18,220.11,181.6281]
[1758636637551,6.3,220.18,220.12,63.5559]
[1758636638256,6.3,220.18,220.11,118.07]
[1758636638650,6.3,220.18,220.16,4.0848]
[1758636638955,7.5,220.24,220.16,4.0848]
[1758636639254,7.5,220.24,220.15,4.0851]
[1758636639452,7.5,220.24,220.13,2.89]
[1758636640751,4.0838,220.22,220.13,2.89]
[1758636641155,7.5,220.24,220.13,2.89]
[1758636641352,13.8,220.24,220.18,4.0845]
[1758636641547,13.8,220.24,220.13,2.89]
[1758636641960,13.8,220.24,220.15,4.085]
[1758636642353,13.8,220.24,220.13,62.29]
[1758636642958,6.3,220.24,220.15,2.89]
[1758636643149,6.3,220.24,220.17,63.5413]
[1758636643347,6.3,220.24,220.19,4.0844]
[1758636643551,6.3,220.24,220.17,2.89]
[1758636644152,6.3,220.24,220.19,4.0844]
[1758636644350,6.3,220.24,220.19,6.9744]
[1758636644652,7.5,220.23,220.19,4.0844]
[1758636645354,7.5,220.23,220.13,2.89]
[1758636645559,7.5,220.23,220.13,118.01]
[1758636646058,7.5,220.23,220.15,4.0851]
[1758636646358,7.5,220.23,220.13,118.01]
[1758636647247,7.5,220.23,220.14,63.55]
[1758636647749,7.5,220.23,220.13,118.01]
[1758636648448,7.5,220.23,220.11,115.1]
[1758636648956,7.5,220.23,220.13,2.89]
[1758636649564,6.3,220.24,220.15,63.547]
[1758636649753,6.3,220.24,220.16,2.89]
[1758636649957,6.3,220.24,220.21,4.0839]
[1758636650356,6.3,220.24,220.18,63.5382]
[1758636650557,6.3,220.24,220.22,4.0837]
[1758636650758,5.05948916,220.34,220.22,4.0837]
[1758636650954,7.5,220.33,220.16,2.89]
[1758636651356,7.5,220.29,220.16,2.89]
[1758636651969,7.5,220.29,220.18,63.5382]
[1758636652167,7.5,220.29,220.16,2.89]
[1758636653074,6.3,220.28,220.16,2.89]
[1758636653369,10.3829,220.28,220.2,4.0841]
[1758636653770,11.5931,220.27,220.19,4.0843]
[1758636654276,7.51,220.27,220.12,2.88]
[1758636654469,7.51,220.24,220.13,115.08]
[1758636654970,7.51,220.24,220.17,4.0846]
[1758636655671,7.51,220.24,220.13,115.08]
[1758636656269,7.51,220.24,220.17,4.0846]
[1758636656471,7.51,220.24,220.12,2.88]
[1758636656676,63.5214,220.24,220.1,4.0859]
[1758636656869,4.0849,220.17,220.1,4.0859]
[1758636657375,7.51,220.16,220.1,4.0859]
[1758636657570,7.51,220.16,220.07,66.4495]
[1758636658273,7.51,220.16,220.07,2.88]
[1758636658867,7.51,220.16,220.12,4.0855]
[1758636659068,6.16662239,220.23,220.12,4.0855]
[1758636659364,4.0842,220.21,220.13,4.0853]
[1758636660370,4.0842,220.21,220.1,4.0859]
[1758636660570,4.0844,220.2,220.07,2.88]
[1758636660767,7.51,220.26,220.14,63.5494]
[1758636660973,7.51,220.26,220.2,4.0841]
[1758636661272,6.3,220.28,220.21,63.5298]
[1758636661473,6.3,220.28,220.25,4.0832]
[1758636661671,0.0001,220.28,220.25,2.88]
[1758636661873,7.51,220.37,220.25,2.88]
[1758636662580,7.51,220.37,220.3,4.0824]
[1758636663467,7.51,220.37,220.27,4.0828]
[1758636664078,7.51,220.37,220.29,4.0825]
[1758636665973,7.51,220.44,220.31,2.88]
[1758636666776,7.51,220.51,220.36,63.4867]
[1758636666971,7.51,220.51,220.37,115.04]
[1758636667177,7.51,220.51,220.35,2.88]
[1758636667178,4.08,220.43,220.35,2.88]
[1758636667481,4.08,220.43,220.32,115.02]
[1758636667482,7.51,220.42,220.32,115.02]
[1758636667872,11.5894,220.46,220.33,2.88]
[1758636668284,7.51,220.46,220.33,2.88]
[1758636669276,4.0798,220.44,220.33,2.88]
[1758636669580,7.51,220.54,220.38,63.4802]
[1758636669783,7.51,220.54,220.41,4.0802]
[1758636669978,7.51,220.54,220.39,117.88]
[1758636670186,6.16662239,220.56,220.39,181.3556]
[1758636670475,4.0779,220.54,220.42,4.08]
[1758636670676,7.51,220.55,220.43,2.88]
[1758636670983,7.51,220.55,220.45,4.0794]
[1758636671185,7.51,220.55,220.43,2.88]
[1758636671780,7.51,220.55,220.44,4.0797]
[1758636672078,7.51,220.55,220.43,2.88]
[1758636673385,7.51,220.55,220.43,118.48]
[1758636674178,11.5878,220.55,220.43,122.5599]
[1758636674377,11.5878,220.55,220.43,6.9599]
[1758636675279,7.51,220.55,220.45,4.0795]
[1758636675784,7.51,220.55,220.43,6.9598]
[1758636676187,7.51,220.55,220.46,4.0792]
[1758636678186,7.51,220.55,220.48,4.0789]
[1758636678591,7.51,220.55,220.43,66.3449]
[1758636678779,7.51,220.55,220.46,4.0793]
[1758636678977,7.51,220.55,220.46,63.4578]
[1758636679186,171.62703175,220.64,220.52,4.0782]
[1758636679187,7.05,220.62,220.52,4.0782]
[1758636679691,7.05,220.62,220.48,2.87]
[1758636680077,11.1265,220.62,220.51,4.0784]
[1758636680283,7.05,220.62,220.49,63.4485]
[1758636681089,7.05,220.62,220.52,4.0782]
[1758636682285,7.05,220.62,220.53,66.3068]
[1758636682586,7.05,220.7,220.54,63.4349]
[1758636683086,6.96,220.77,220.59,2.86]
[1758636683292,6.96,220.77,220.63,63.4087]
[1758636683487,6.96,220.77,220.67,4.0754]
[1758636683687,6.96,220.77,220.63,2.86]
[1758636684080,6.96,220.77,220.63,110.9162]
[1758636684285,6.96,220.75,220.56,2.86]
[1758636684480,6.96,220.69,220.59,4.0769]
[1758636684785,6.96,220.69,220.56,2.86]
[1758636685303,6.96,220.68,220.54,66.98]
[1758636685691,63.393,220.69,220.54,66.98]
[1758636685890,6.96,220.63,220.52,118.26]
[1758636686795,6.96,220.63,220.54,4.0779]
[1758636687206,6.96,220.63,220.52,118.26]
[1758636687594,6.96,220.63,220.54,63.4334]
[1758636687800,6.96,220.72,220.54,63.4334]
[1758636688005,6.96,220.68,220.52,2.86]
[1758636688305,73.54036872,220.74,220.53,63.437]
[1758636688502,6.96,220.68,220.55,63.4317]
[1758636688702,6.96,220.68,220.55,66.2917]
[1758636688904,6.96,220.68,220.57,63.4259]
[1758636689299,6.96,220.68,220.61,4.0766]
[1758636689709,6.96,220.68,220.58,66.2832]
[1758636689904,4.0746,220.72,220.59,115.38]
[1758636690311,6.96,220.73,220.64,4.076]
[1758636691209,6.96,220.73,220.66,4.0757]
[1758636692906,6.96,220.71,220.58,2.86]
[1758636693115,6.96,220.71,220.6,63.4175]
[1758636693411,6.96,220.71,220.6,115.26]
[1758636694409,6.96,220.71,220.62,4.0764]
[1758636695113,6.96,220.71,220.6,115.26]
[1758636695612,6.96,220.71,220.63,63.4076]
[1758636695915,6.96,220.79,220.64,63.4056]
[1758636696116,6.96,220.79,220.66,2.86]
[1758636696310,6.96,220.79,220.69,4.075]
[1758636697213,6.96,220.79,220.66,2.86]
[1758636697507,6.96,220.79,220.6,2.86]
[1758636697508,6.96,220.77,220.6,2.86]
[1758636697709,6.96,220.74,220.6,2.86]
[1758636697907,63.3717,220.76,220.53,63.94673919]
[1758636697908,6.96,220.72,220.54,2.86]
[1758636698114,6.96,220.72,220.55,84.88]